bitfinex/quotes_SOLUSD_20250222
["timestamp","ask_amount","ask_price","bid_price","bid_amount"]
[1740259640281,95.22227312,173.19,173.13,11.65992082]
[1740259640663,83.5623523,173.19,173.13,11.65992082]
[1740259641182,76.2709523,173.19,173.15,11.65992082]
[1740259642055,82.0450523,173.19,173.15,11.65992082]
[1740259645677,76.2709523,173.19,173.15,11.65992082]
[1740259646058,76.2709523,173.19,173.17,11.65992082]
[1740259648182,76.2709523,173.19,173.16,11.65992082]
[1740259652185,0.03,173.19,173.16,11.65992082]
[1740259654384,0.03,173.19,173.17,11.65992082]
[1740259657089,0.03,173.19,173.16,11.65992082]
[1740259670291,0.03,173.19,173.15,15.79992082]
[1740259670604,0.03,173.19,173.16,11.65992082]
[1740259686200,0.03,173.19,173.15,4.14]
[1740259687417,11.65992082,173.16,173.13,0.063]
[1740259688115,11.65992082,173.14,173.13,0.063]
[1740259688314,17.43552082,173.14,173.13,0.063]
[1740259689238,25.03152082,173.14,173.13,0.063]
[1740259689732,19.25592082,173.14,173.13,0.063]
[1740259695213,25.03152082,173.14,173.13,0.063]
[1740259697523,19.25592082,173.14,173.13,0.063]
[1740259698321,25.03152082,173.14,173.13,0.063]
[1740259701028,11.65992082,173.15,173.13,0.063]
[1740259702325,11.65992082,173.14,173.13,0.063]
[1740259703204,23.84202082,173.14,173.13,0.063]
[1740259703602,25.43132082,173.14,173.13,0.063]
[1740259709935,25.46132082,173.14,173.13,0.063]
[1740259711536,0.03,173.14,173.13,0.063]
[1740259715236,11.68992082,173.14,173.13,0.063]
[1740259716430,17.46552082,173.14,173.13,0.063]
[1740259717127,18.46552082,173.14,173.13,0.063]
[1740259720433,20.0,173.11,173.1,0.063]
[1740259720744,37.43652082,173.11,173.1,0.063]
[1740259722332,38.43652082,173.11,173.1,0.063]
[1740259724144,37.43652082,173.11,173.1,0.063]
[1740259731348,38.43652082,173.11,173.1,0.063]
[1740259732555,57.08616968,173.11,173.1,0.0001]
[1740259732851,58.08616968,173.11,173.1,0.0001]
[1740259733050,27.18834886,173.1,173.09,0.0001]
[1740259733269,38.84826968,173.1,173.09,0.0001]
[1740259734639,44.62526968,173.1,173.09,0.0001]
[1740259739758,47.45710759,173.1,173.09,0.0001]
[1740259742779,21.0,173.06,173.05,0.063]
[1740259743058,51.30956968,173.06,173.05,0.063]
[1740259745778,1.0,173.05,173.04,0.063]
[1740259745943,13.65992082,173.05,173.04,0.063]
[1740259746142,13.65992082,173.05,173.04,0.0001]
[1740259747470,19.43852082,173.05,173.04,0.0001]
[1740259753252,22.29243364,173.05,173.04,0.0001]
[1740259756762,40.9420825,173.05,173.04,0.0001]
[1740259756961,1.0,173.01,173.0,0.0001]
[1740259757152,32.65992082,173.01,173.0,0.0001]
[1740259758283,38.43992082,173.01,173.0,0.0001]
[1740259759974,57.08956968,173.01,173.0,0.0001]
[1740259760765,1.0,173.0,172.99,0.0001]
[1740259760971,21.0,172.98,172.96,0.063]
[1740259761161,51.30956968,172.98,172.96,0.063]
[1740259761782,97.94925296,172.98,172.96,0.063]
[1740259762358,103.73025296,172.98,172.96,0.063]
[1740259763260,19.64964886,172.96,172.95,0.063]
[1740259763465,31.30956968,172.96,172.95,0.063]
[1740259764269,37.09116968,172.96,172.95,0.063]
[1740259764463,39.64964886,172.93,172.92,0.063]
[1740259764658,51.30956968,172.93,172.92,0.063]
[1740259764860,31.65992082,172.93,172.92,0.063]
[1740259765759,20.0,172.93,172.92,0.063]
[1740259767581,98.44192082,172.95,172.92,0.063]
[1740259767765,86.782,172.95,172.92,0.063]
[1740259768162,81.0,172.94,172.92,0.063]
[1740259773693,86.7824,172.94,172.92,0.063]
[1740259774078,81.0,172.93,172.92,0.063]
[1740259779901,17.44192082,172.95,172.92,0.063]
[1740259782499,5.782,172.95,172.92,0.063]
[1740259782700,0.063,172.94,172.92,0.063]
[1740259792494,11.65992082,172.93,172.92,0.063]
[1740259793203,5.7826,172.93,172.92,0.063]
[1740259794605,0.063,172.94,172.92,0.063]
[1740259794909,5.8454,172.94,172.92,0.063]
[1740259798905,0.8454,172.94,172.92,0.063]
[1740259799109,11.65992082,172.95,172.92,0.063]
[1740259800312,5.7824,172.94,172.92,0.063]
[1740259800699,14.4537,172.97,172.92,0.063]
[1740259800700,31.65992082,172.97,172.92,0.063]
[1740259801516,11.65992082,172.96,172.92,0.063]
[1740259801713,11.65992082,172.95,172.92,0.063]
[1740259801903,31.65992082,172.95,172.92,0.063]
[1740259802299,20.0,172.95,172.92,0.063]
[1740259803714,81.0,172.94,172.93,11.65992082]
[1740259804011,81.0,172.97,172.93,11.65992082]
[1740259805606,81.0,172.97,172.92,17.50562082]
[1740259805808,81.0,172.97,172.93,11.65992082]
[1740259806518,0.063,172.95,172.93,11.65992082]
[1740259807917,0.063,172.95,172.94,11.65992082]
[1740259814017,0.063,172.95,172.93,11.65992082]
[1740259819010,0.063,172.95,172.94,11.65992082]
[1740259824320,0.063,172.95,172.93,11.65992082]
[1740259827540,0.063,172.95,172.92,11.72292082]
[1740259828121,0.063,172.95,172.93,11.65992082]
[1740259830158,0.063,172.95,172.94,11.65992082]
[1740259830345,0.063,172.95,172.93,11.65992082]
[1740259830550,0.063,172.95,172.94,11.65992082]
[1740259832869,0.063,172.95,172.94,17.44222082]
[1740259835846,0.063,172.95,172.94,11.65992082]
[1740259836351,0.063,172.95,172.94,17.44222082]
[1740259837449,0.063,172.95,172.94,11.65992082]
[1740259840033,0.063,172.95,172.94,17.44222082]
[1740259841932,0.063,172.95,172.94,11.68992082]
[1740259848542,0.063,172.95,172.94,0.03]
[1740259852349,0.063,172.95,172.94,11.68992082]
[1740259859241,0.063,172.95,172.94,17.47222082]
[1740259860464,0.063,172.95,172.94,11.68992082]
[1740259861356,0.063,172.95,172.94,17.47222082]
[1740259862052,0.063,172.95,172.94,11.68992082]
[1740259864352,0.063,172.95,172.94,17.47222082]
[1740259869385,0.063,172.95,172.94,36.12186968]
[1740259870978,0.063,172.95,172.94,37.12186968]
[1740259874176,0.063,172.95,172.94,42.91586968]
[1740259874383,0.063,172.95,172.94,37.12186968]
[1740259875081,0.063,172.95,172.94,119.02186968]
[1740259876282,7.9393,173.04,172.94,119.02186968]
[1740259876487,7.9393,173.04,172.99,11.65992082]
[1740259877075,7.9393,173.04,173.0,11.65992082]
[1740259877888,6.3871,173.04,173.01,11.65992082]
[1740259878784,6.3871,173.04,173.01,17.43972082]
[1740259879273,6.3871,173.04,173.01,11.65992082]
[1740259879676,6.3871,173.04,173.0,17.44022082]
[1740259882690,6.3871,173.04,173.01,11.65992082]
[1740259883496,6.3871,173.04,173.01,17.43982082]
[1740259887491,0.063,173.04,173.01,17.43982082]
[1740259887792,0.063,173.04,172.97,7.00619867]
[1740259887996,0.063,173.04,173.01,11.65992082]
[1740259889395,0.063,173.04,173.02,5.7796]
[1740259891397,0.063,173.04,173.02,11.65992082]
[1740259892587,0.063,173.04,173.02,17.43952082]
[1740259893775,0.063,173.04,173.01,11.65992082]
[1740259894292,0.063,173.04,173.01,17.43982082]
[1740259894498,0.063,173.04,173.01,5.7799]
[1740259896496,0.063,173.04,173.01,11.65992082]
[1740259899702,0.063,173.04,173.01,17.43982082]
[1740259907520,0.063,173.04,173.0,11.65992082]
[1740259907705,11.72292082,173.04,172.98,11.65992082]
[1740259907892,11.65992082,173.02,172.96,17.44152082]
[1740259908092,81.0,173.01,172.96,11.65992082]
[1740259908308,92.65992082,173.01,172.95,17.47182082]
[1740259908601,7.6284,173.03,172.95,0.03]
[1740259908602,92.65992082,173.0,172.95,0.03]
[1740259909000,11.65992082,172.98,172.95,0.03]
[1740259909202,6.2109,172.97,172.95,0.03]
[1740259909413,81.0,172.96,172.95,0.03]
[1740259909806,17.87082082,172.97,172.95,0.03]
[1740259910020,11.65992082,172.96,172.95,0.03]
[1740259913526,6.2109,172.97,172.95,0.03]
[1740259914111,23.65222082,172.97,172.95,0.03]
[1740259914317,11.65992082,172.96,172.95,0.03]
[1740259914700,17.87082082,172.97,172.95,0.03]
[1740259914906,6.2109,172.97,172.95,0.03]
[1740259925825,11.65992082,172.99,172.95,0.03]
[1740259926017,11.65992082,173.01,172.95,11.68992082]
[1740259927028,20.0,172.98,172.95,0.03]
[1740259929533,25.781,172.98,172.95,0.03]
[1740259931331,81.0,172.97,172.95,0.03]
[1740259934314,86.7815,172.97,172.95,0.03]
[1740259934929,98.44142082,172.97,172.95,0.03]
[1740259935134,98.50442082,172.97,172.95,0.03]
[1740259936439,11.65992082,172.96,172.95,0.03]
[1740259936637,17.44152082,172.96,172.95,0.03]
[1740259936842,5.7816,172.96,172.95,0.03]
[1740259937714,17.74762082,172.97,172.95,0.03]
[1740259937941,6.0877,172.97,172.95,0.03]
[1740259940819,11.869,172.97,172.95,0.03]
[1740259952548,5.8443,172.97,172.95,0.03]
[1740259954946,0.063,172.97,172.95,0.03]
[1740259958150,0.063,172.97,172.95,11.68992082]
[1740259959449,0.063,172.97,172.95,0.03]
[1740259963854,0.063,172.97,172.95,11.68992082]
[1740259968560,0.063,172.97,172.95,0.03]
[1740259973347,0.063,172.97,172.96,11.65992082]
[1740259974347,0.063,172.97,172.96,30.30956968]
[1740259974863,0.063,172.97,172.96,36.09116968]
[1740259984360,81.0,173.03,172.99,20.0]
[1740259984550,0.063,173.04,173.01,11.65992082]
[1740259986259,0.063,173.04,173.02,11.65992082]
[1740259991056,0.063,173.04,173.03,11.65992082]
[1740259992570,0.063,173.04,173.03,17.43922082]
[1740260028997,0.063,173.04,173.03,11.65992082]
[1740260030001,0.063,173.04,173.02,11.65992082]
[1740260030203,0.063,173.04,172.99,4.14]
[1740260030369,0.063,173.04,172.99,15.79992082]
[1740260030370,87.6782,173.04,172.99,15.79992082]
[1740260031693,87.6782,173.04,173.0,11.65992082]
[1740260032383,87.6782,173.04,172.99,9.9205]
[1740260032384,87.6782,173.04,173.01,11.65992082]
[1740260034489,87.6782,173.04,173.0,17.44022082]
[1740260036800,87.6782,173.04,173.01,11.65992082]
[1740260038100,87.6782,173.04,173.01,17.43982082]
[1740260039307,87.6782,173.04,173.0,17.44022082]
[1740260041388,87.6782,173.04,173.01,17.43972082]
[1740260041886,87.6782,173.04,173.0,17.44022082]
[1740260042085,87.6782,173.04,172.99,21.58052082]
[1740260042301,87.6782,173.04,172.99,17.44052082]
[1740260050527,92.65992082,173.03,172.98,11.65992082]
[1740260050733,81.0,173.03,172.98,17.44082082]
[1740260051325,81.0,173.03,172.99,11.65992082]
[1740260051806,81.0,173.03,172.98,11.65992082]
[1740260052000,11.65992082,173.01,172.97,0.03]
[1740260052196,81.0,173.01,172.97,11.68992082]
[1740260052403,81.0,173.01,172.98,11.65992082]
[1740260052719,81.0,173.01,172.99,5.7806]
[1740260052917,81.0,173.01,173.0,11.65992082]
[1740260053106,6.6782,173.04,173.0,11.65992082]
[1740260053303,6.6782,173.04,173.01,11.65992082]
[1740260054123,6.6782,173.04,172.99,17.44052082]
[1740260054927,6.6782,173.04,172.97,17.47092082]
[1740260054928,24.11712082,173.04,172.97,17.47092082]
[1740260055107,11.65992082,173.03,172.97,17.47092082]
[1740260055705,11.65992082,173.02,172.97,0.03]
[1740260056000,11.65992082,173.01,172.97,0.03]
[1740260056225,11.65992082,173.0,172.97,0.03]
[1740260056801,11.65992082,173.01,172.97,0.03]
[1740260058018,17.43992082,173.01,172.97,0.03]
[1740260058610,11.65992082,173.01,172.97,0.03]
[1740260059304,92.65992082,173.0,172.97,0.03]
[1740260062219,81.0,173.0,172.97,0.03]
[1740260073827,81.0,173.0,172.99,11.65992082]
[1740260075941,0.063,173.01,172.99,17.44052082]
[1740260076240,0.063,173.01,173.0,11.65992082]
[1740260077519,0.063,173.01,173.0,17.44022082]
[1740260109513,0.063,173.01,173.0,36.08986968]
[1740260111017,0.063,173.01,173.0,17.44022082]
[1740260117119,0.063,173.01,173.0,5.7803]
[1740260118706,0.063,173.01,172.99,5.7806]
[1740260118906,0.063,173.01,172.99,17.44052082]
[1740260123825,0.063,173.01,173.0,11.65992082]
[1740260124029,0.063,173.01,173.0,17.44022082]
[1740260125011,0.063,173.01,173.0,36.08986968]
[1740260127018,0.063,173.01,173.0,37.08986968]
[1740260127214,0.063,173.01,173.0,36.08986968]
[1740260127617,0.063,173.01,173.0,17.44022082]
[1740260138818,0.063,173.01,173.0,36.08986968]
[1740260139019,0.063,173.04,173.03,11.65992082]
[1740260140436,0.063,173.04,173.03,36.08886968]
[1740260142123,1.6409,173.09,173.07,11.65992082]
[1740260142541,1.6409,173.09,173.08,5.7776]
[1740260143221,0.03,173.1,173.09,18.64964886]
[1740260143431,0.03,173.1,173.09,31.17590473]
[1740260144541,0.03,173.1,173.09,36.95320473]
[1740260145921,0.063,173.12,173.11,38.64964886]
[1740260146121,0.063,173.12,173.11,50.30956968]
[1740260146346,0.063,173.12,173.11,51.17571948]
[1740260146521,0.063,173.12,173.11,50.30956968]
[1740260148433,0.063,173.12,173.11,56.08616968]
[1740260150143,0.063,173.12,173.11,15.79992082]
[1740260151145,0.063,173.12,173.11,4.14]
[1740260153036,0.063,173.12,173.11,21.57652082]
[1740260156130,0.063,173.12,173.1,41.57682082]
[1740260156552,0.063,173.12,173.1,4.14]
[1740260157733,0.063,173.12,173.1,15.79992082]
[1740260157933,0.063,173.12,173.11,11.65992082]
[1740260159039,0.063,173.12,173.11,17.43652082]
[1740260160235,80.686,173.15,173.11,17.43652082]
[1740260160454,80.686,173.15,173.13,11.65992082]
[1740260162559,80.686,173.15,173.13,17.43582082]
[1740260162755,6.0947,173.18,173.14,11.65992082]
[1740260162942,6.0947,173.18,173.15,11.65992082]
[1740260164141,6.0947,173.18,173.14,11.65992082]
[1740260165738,6.0947,173.18,173.14,17.43552082]
[1740260166764,0.063,173.18,173.17,11.65992082]
[1740260168560,0.063,173.18,173.17,17.43452082]
[1740260169965,0.063,173.18,173.16,11.65992082]
[1740260170249,0.063,173.18,173.15,15.81992082]
[1740260170744,0.063,173.18,173.15,21.59492082]
[1740260171638,0.063,173.18,173.16,11.65992082]
[1740260173461,0.063,173.18,173.16,5.7749]
[1740260174462,0.063,173.18,173.14,5.7756]
[1740260174667,0.063,173.18,173.14,9.9356]
[1740260179572,0.063,173.18,173.15,11.65992082]
[1740260179775,0.063,173.18,173.16,11.65992082]
[1740260181787,0.063,173.18,173.17,17.43452082]
[1740260187697,0.063,173.18,173.16,24.42464886]
[1740260187874,0.063,173.18,173.17,11.65992082]
[1740260189199,0.063,173.18,173.17,30.30956968]
[1740260189393,0.063,173.18,173.17,36.08416968]
[1740260192976,0.0001,173.18,173.17,37.08416968]
[1740260193184,0.0001,173.19,173.18,18.64964886]
[1740260193498,0.0001,173.19,173.18,118.84966033]
[1740260193689,0.0001,173.19,173.18,117.98386968]
[1740260195683,0.0001,173.19,173.18,152.72386968]
[1740260195884,0.0001,173.19,173.18,117.98386968]
[1740260199193,0.0001,173.19,173.18,118.98386968]
[1740260203381,0.0001,173.19,173.18,120.63226968]
[1740260204186,0.0001,173.19,173.18,121.63226968]
[1740260206204,0.0001,173.19,173.18,156.37226968]
[1740260209412,0.0001,173.19,173.18,154.72386968]
[1740260217115,0.0001,173.19,173.18,154.78686968]
[1740260217614,0.03,173.22,173.2,1.0]
[1740260217939,0.0001,173.22,173.21,55.42956968]
[1740260218218,0.0001,173.22,173.21,57.29522861]
[1740260219209,0.0001,173.22,173.21,63.06852861]
[1740260220317,0.0001,173.22,173.21,62.06852861]
[1740260220618,0.0001,173.22,173.21,63.06852861]
[1740260222422,0.0001,173.22,173.21,144.96852861]
[1740260222726,0.0001,173.22,173.21,144.10286968]
[1740260225111,0.0001,173.22,173.21,146.95279269]
[1740260225712,0.03,173.25,173.23,18.64964886]
[1740260225920,0.03,173.25,173.24,11.65992082]
[1740260227026,0.03,173.25,173.24,118.98186968]
[1740260227431,0.03,173.3,173.28,20.0]
[1740260227633,0.03,173.3,173.29,34.42956968]
[1740260229116,0.03,173.3,173.29,40.20016968]
[1740260229334,0.03,173.3,173.29,9.8906]
[1740260229833,0.03,173.3,173.29,40.20016968]
[1740260232415,0.03,173.3,173.29,41.20016968]
[1740260237040,0.03,173.3,173.29,75.89016968]
[1740260237418,0.03,173.3,173.29,157.79016968]
[1740260265045,0.03,173.36,173.31,1.0]
[1740260265243,0.03,173.36,173.34,11.65992082]
[1740260265448,0.03,173.36,173.35,11.65992082]
[1740260266661,0.03,173.36,173.35,40.19816968]
[1740260268170,0.03,173.36,173.35,122.09816968]
[1740260277875,0.03,173.36,173.35,156.78816968]
[1740260278176,0.03,173.36,173.35,122.09816968]
[1740260293467,0.03,173.36,173.35,123.09816968]
[1740260296590,0.03,173.36,173.35,110.43824886]
[1740260296888,0.03,173.36,173.35,4.12]
[1740260297470,17.94222082,173.36,173.35,4.12]
[1740260297679,1.562,173.35,173.33,4.12]
[1740260298574,1.562,173.35,173.33,9.8892]
[1740260299987,1.562,173.35,173.33,5.7692]
[1740260300170,1.562,173.35,173.33,9.8892]
[1740260301593,1.562,173.35,173.33,4.12]
[1740260301787,11.65992082,173.34,173.31,4.12]
[1740260301990,11.65992082,173.32,173.31,4.12]
[1740260302383,17.91222082,173.32,173.31,4.12]
[1740260303295,17.91222082,173.32,173.3,0.063]
[1740260304694,6.2523,173.32,173.3,0.063]
[1740260304885,17.91222082,173.32,173.3,0.063]
[1740260306202,6.2523,173.32,173.3,0.063]
[1740260307185,17.91222082,173.32,173.3,0.063]
[1740260311607,6.2523,173.32,173.3,0.063]
[1740260319112,80.686,173.33,173.3,0.063]
[1740260320125,92.34592082,173.33,173.3,0.063]
[1740260322411,11.65992082,173.31,173.3,0.063]
[1740260330918,6.5054,173.32,173.3,0.063]
[1740260332909,92.65992082,173.34,173.3,0.063]
[1740260333512,0.03,173.32,173.3,0.063]
[1740260334226,11.68992082,173.32,173.3,0.063]
[1740260334816,11.65992082,173.31,173.3,0.063]
[1740260335022,17.42992082,173.31,173.3,0.063]
[1740260336205,25.24632082,173.31,173.3,0.063]
[1740260337323,26.24632082,173.31,173.3,0.063]
[1740260345236,25.24632082,173.31,173.3,0.063]
[1740260345411,25.27632082,173.31,173.3,0.063]
[1740260345811,19.50632082,173.31,173.3,0.063]
[1740260346014,17.95612082,173.31,173.3,0.063]
[1740260346218,11.68992082,173.31,173.3,0.063]
[1740260347236,17.45992082,173.31,173.3,0.063]
[1740260347436,11.68992082,173.31,173.3,0.063]
[1740260349417,0.03,173.31,173.3,0.063]
[1740260353132,11.68992082,173.31,173.3,0.063]
[1740260354529,0.03,173.31,173.3,0.063]
[1740260358040,11.68992082,173.31,173.3,0.063]
[1740260359248,92.68992082,173.31,173.3,0.063]
[1740260359947,81.03,173.31,173.3,0.063]
[1740260365156,0.03,173.31,173.3,0.063]
[1740260383167,0.03,173.31,173.3,11.72292082]
[1740260383471,0.03,173.31,173.3,17.49322082]
[1740260384846,0.03,173.31,173.3,36.14286968]
[1740260385851,0.03,173.31,173.3,11.72292082]
[1740260386047,0.03,173.31,173.3,0.063]
[1740260387971,0.03,173.31,173.3,11.72292082]
[1740260390448,0.03,173.31,173.3,17.49322082]
[1740260394890,0.03,173.31,173.3,36.14286968]
[1740260396171,0.03,173.31,173.3,39.05089243]
[1740260415780,0.03,173.31,173.3,0.063]
[1740260421106,0.03,173.31,173.3,5.8333]
[1740260422403,0.03,173.31,173.3,0.063]
[1740260423613,0.03,173.31,173.3,11.72292082]
[1740260424293,0.03,173.31,173.3,0.063]
[1740260426192,11.68992082,173.31,173.3,0.063]
[1740260427894,0.03,173.31,173.3,0.063]
[1740260430322,11.68992082,173.31,173.3,0.063]
[1740260436424,92.68992082,173.31,173.3,0.063]
[1740260441924,81.03,173.31,173.3,0.063]
[1740260442110,0.03,173.31,173.3,15.84292082]
[1740260442511,0.03,173.31,173.3,34.49256968]
[1740260443337,0.03,173.31,173.3,40.26286968]
[1740260449448,0.03,173.31,173.3,43.08452982]
[1740260451245,0.03,173.31,173.3,124.98452982]
[1740260454047,0.03,173.32,173.3,124.98452982]
[1740260454246,0.03,173.32,173.31,30.30956968]
[1740260454452,0.03,173.32,173.31,31.30956968]
[1740260455339,0.0001,173.32,173.31,31.30956968]
[1740260455741,0.0001,173.32,173.31,36.07956968]
[1740260457652,0.0001,173.32,173.31,40.19956968]
[1740260460840,0.0001,173.32,173.31,41.19956968]
[1740260461041,0.0001,173.32,173.31,40.19956968]
[1740260461760,0.0001,173.32,173.31,122.09956968]
[1740260462444,0.0001,173.32,173.31,123.09956968]
[1740260465170,0.0001,173.32,173.31,122.09956968]
[1740260468658,0.0001,173.32,173.31,103.44992082]
[1740260468864,0.0001,173.32,173.31,91.79]
[1740260469564,0.0001,173.32,173.31,87.67]
[1740260469751,0.0001,173.32,173.31,91.79]
[1740260470964,0.0001,173.32,173.31,91.853]
[1740260471368,0.0001,173.32,173.31,122.16256968]
[1740260475966,0.0001,173.32,173.31,156.85256968]
[1740260476171,0.0001,173.32,173.31,122.16256968]
[1740260477451,0.0001,173.32,173.31,123.16256968]
[1740260481578,0.0001,173.32,173.31,122.16256968]
[1740260482879,0.0001,173.32,173.31,123.16256968]
[1740260483071,0.0001,173.32,173.31,122.16256968]
[1740260496277,0.0001,173.32,173.31,28.60264886]
[1740260496478,0.0001,173.32,173.31,5.833]
[1740260496684,0.0001,173.32,173.31,9.953]
[1740260496872,0.0001,173.32,173.31,0.063]
[1740260497181,11.66002082,173.32,173.31,0.063]
[1740260497389,98.42962082,173.32,173.31,0.063]
[1740260497773,13.24422082,173.31,173.3,0.063]
[1740260498367,13.24422082,173.31,173.27,0.063]
[1740260498368,17.77612082,173.28,173.27,0.063]
[1740260507178,23.54712082,173.28,173.27,0.063]
[1740260507372,1.5843,173.27,173.21,0.063]
[1740260507572,11.65992082,173.22,173.21,0.063]
[1740260508679,11.65992082,173.23,173.21,0.063]
[1740260509674,11.65992082,173.24,173.21,0.063]
[1740260510074,11.65992082,173.23,173.21,0.063]
[1740260511289,11.65992082,173.22,173.21,0.063]
[1740260513302,17.43292082,173.22,173.21,0.063]
[1740260514207,23.66092082,173.22,173.21,0.063]
[1740260514376,25.23242082,173.22,173.21,0.063]
[1740260518104,19.45942082,173.22,173.21,0.063]
[1740260518281,11.65992082,173.23,173.21,0.063]
[1740260518484,11.65992082,173.24,173.21,0.063]
[1740260519680,81.0,173.25,173.21,0.063]
[1740260519887,11.65992082,173.24,173.21,0.063]
[1740260520308,92.65992082,173.25,173.21,0.063]
[1740260520490,81.0,173.25,173.21,0.063]
[1740260520886,81.0,173.25,173.21,11.72292082]
[1740260521183,92.65992082,173.25,173.21,0.063]
[1740260522511,11.65992082,173.22,173.21,0.063]
[1740260524098,11.65992082,173.23,173.21,0.063]
[1740260527031,92.65992082,173.24,173.21,0.063]
[1740260528019,81.0,173.24,173.21,11.72292082]
[1740260528513,11.65992082,173.26,173.21,0.063]
[1740260528708,11.65992082,173.25,173.21,0.063]
[1740260528916,11.65992082,173.25,173.21,5.8363]
[1740260530109,11.65992082,173.26,173.21,5.8363]
[1740260530309,11.65992082,173.26,173.21,17.49622082]
[1740260530898,11.65992082,173.26,173.21,5.8363]
[1740260531718,11.65992082,173.26,173.21,17.49622082]
[1740260533591,11.65992082,173.26,173.21,5.8363]
[1740260535818,11.65992082,173.26,173.21,17.49622082]
[1740260538822,1.0,173.2,173.18,0.063]
[1740260539024,4.22,173.26,173.06,17.05141922]
[1740260539025,1.0,173.07,173.06,17.05141922]
[1740260539320,20.0,173.04,173.03,36.28680346]
[1740260539519,31.65992082,173.04,173.03,36.28680346]
[1740260540602,31.65992082,173.04,172.96,17.50192082]
[1740260540603,18.06866172,173.04,172.99,0.063]
[1740260541204,18.06866172,173.03,172.99,0.063]
[1740260541607,17.9792659,173.02,172.99,0.063]
[1740260543510,17.9792659,173.01,173.0,79.96177839]
[1740260544219,8.98199018,173.02,173.0,51.82079775]
[1740260544818,63.48654861,173.04,173.0,51.82079775]
[1740260545224,45.41788689,173.04,173.0,51.82079775]
[1740260546123,36.43589671,173.04,173.0,51.82079775]
[1740260547927,108.0506519,173.05,173.0,51.82079775]
[1740260548812,18.06866172,173.04,173.0,51.82079775]
[1740260549011,18.06866172,173.01,173.0,51.82079775]
[1740260550829,18.06866172,173.01,173.0,11.61092549]
[1740260556537,23.84866172,173.01,173.0,11.61092549]
[1740260556744,24.84866172,173.01,173.0,11.61092549]
[1740260556954,23.84866172,173.01,173.0,11.61092549]
[1740260557429,24.84866172,173.01,173.0,11.61092549]
[1740260557749,23.84866172,173.01,173.0,11.61092549]
[1740260559247,18.06866172,173.01,173.0,11.61092549]
[1740260562744,23.84866172,173.01,173.0,11.61092549]
[1740260562947,18.06866172,173.01,173.0,11.61092549]
[1740260563147,20.0,173.01,173.0,11.61092549]
[1740260563645,38.06866172,173.01,173.0,11.61092549]
[1740260563857,38.13166172,173.01,173.0,11.61092549]
[1740260564531,38.13166172,173.01,172.95,0.08]
[1740260564730,31.63035921,173.01,172.95,0.08]
[1740260565152,81.0,173.0,172.95,0.08]
[1740260566252,92.56735921,173.0,172.95,0.08]
[1740260569957,81.0,172.99,172.95,0.08]
[1740260576336,81.0,172.99,172.92,31.80785921]
[1740260578738,81.0,172.99,172.96,11.56735921]
[1740260580063,81.0,172.99,172.97,11.56735921]
[1740260580566,81.0,172.99,172.96,11.56735921]
[1740260581263,81.0,172.99,172.96,17.34895921]
[1740260581943,0.063,173.0,172.96,17.34895921]
[1740260583445,0.063,173.0,172.96,5.7816]
[1740260586064,0.063,173.0,172.96,11.56735921]
[1740260586245,0.063,173.0,172.97,11.56735921]
[1740260586452,0.063,173.0,172.96,11.56735921]
[1740260587849,0.063,173.0,172.95,17.34935921]
[1740260589251,0.063,173.0,172.96,11.56735921]
[1740260590168,0.063,173.0,172.97,4.24]
[1740260590844,0.063,173.0,172.97,10.0213]
[1740260593770,0.063,173.0,172.98,11.56735921]